[Event "41st Arco Open 2019"]
[Site "Arco"]
[Date "2019.10.10"]
[Round "7"]
[White "Tolhuizen, Ludo"]
[Black "Dittmar, Peter"]
[Result "1/2-1/2"]
[ECO "B13"]
[WhiteElo "2102"]
[BlackElo "2253"]
[Annotator "NA"]
[PlyCount "52"]
[EventDate "2019.10.04"]
[EventType "swiss"]
[EventCountry "ITA"]
[SourceTitle "playchess.com"]
[Source "ChessBase"]
[SourceQuality "1"]
[TimeControl "40/5400+30:1800+30"]

1. d4 {[%emt 0:00:30]} d5 {[%emt 0:03:30]} 2. Nf3 {[%emt 0:00:30]} c5 {[%emt 0:00:00]} 3. e3 {[%emt 0:00:30]} cxd4 {[%emt 0:00:00]} 4. exd4 {[%emt 0:00:00]} Nf6 {[%emt 0:00:30]} 5. Bf4 {[%emt 0:08:00]} Nc6 {[%emt 0:00:30]} 6. c3 $11 Bg4 {[%emt 0:00:30]} 7. Nbd2 {[%emt 0:04:00]} e6 {[%emt 0:03:30]} 8. Qb3 Qc8 {[%emt 0:01:30]} 9. Bd3 {[%emt 0:09:00]} Be7 {[%emt 0:00:30]} 10. O-O {[%emt 0:03:30]} O-O {[%emt 0:00:30]} 11. Rfe1 {[%emt 0:01:30]} Bh5 12. Ne5 {[%emt 0:05:30]} Nxe5 {[%emt 0:05:00]} 13. Bxe5 {[%emt 0:00:00]} Bg6 {[%emt 0:00:30]} 14. Bxg6 {[%emt 0:06:00]} hxg6 {[%emt 0:00:30]} 15. a4 {[%emt 0:00:30]} Qc6 {[%emt 0:00:30]} 16. Nf3 {[%emt 0:02:30]} Ne4 {[%emt 0:26:30]} 17. Qc2 {[%emt 0:02:30]} Rac8 {[%emt 0:00:00]} 18. Bf4 {[%emt 0:06:30]} Bf6 {[%emt 0:15:00]} 19. Nd2 {[%emt 0:09:30]} Bxd4 {[%emt 0:00:00]} 20. Nxe4 dxe4 {[%emt 0:00:00]} 21. Qxe4 {[%emt 0:07:00]} Qxe4 22. Rxe4 {[%emt 0:00:30]} Bf6 {[%emt 0:02:00]} 23. Rb4 {[%emt 0:08:30]} b6 24. a5 {[%emt 0:00:30]} Bd8 {[%emt 0:02:00]} 25. axb6 {[%emt 0:00:00]} Bxb6 {[%emt 0:00:30]} 26. Rd1 {[%emt 0:05:00]} f6 {[%emt 0:05:30]} 1/2-1/2

[Event "41st Arco Open 2019"]
[Site "Arco"]
[Date "2019.10.10"]
[Round "7"]
[White "Pasti, Aron"]
[Black "Kuhn, Tobias"]
[Result "1/2-1/2"]
[ECO "B11"]
[WhiteElo "2099"]
[BlackElo "2234"]
[Annotator "NA"]
[PlyCount "158"]
[EventDate "2019.10.04"]
[EventType "swiss"]
[EventCountry "ITA"]
[SourceTitle "playchess.com"]
[Source "ChessBase"]
[SourceQuality "1"]
[TimeControl "40/5400+30:1800+30"]

1. e4 {[%emt 0:01:30]} c6 {[%emt 0:00:30]} 2. Nf3 {[%emt 0:00:30]} d5 {[%emt 0:00:30]} 3. Nc3 {[%emt 0:00:00]} Bg4 {[%emt 0:00:00]} 4. h3 {[%emt 0:00:00]} Bxf3 {[%emt 0:00:00]} 5. Qxf3 $11 {[%emt 0:00:00]} e6 {[%emt 0:00:30]} 6. d4 dxe4 {[%emt 0:00:30]} 7. Nxe4 {[%emt 0:00:30]} Qxd4 {[%emt 0:00:30]} 8. Bd3 Nd7 {[%emt 0:01:30]} 9. Be3 {[%emt 0:02:00]} Qb4+ {[%emt 0:04:30]} 10. Bd2 {[%emt 0:06:30]} Ne5 {[%emt 0:05:30]} 11. Qg3 {[%emt 0:08:30]} Nxd3+ 12. Qxd3 {[%emt 0:02:30]} Qb6 {[%emt 0:11:00]} 13. O-O-O {[%emt 0:18:30]} Rd8 {[%emt 0:15:30]} 14. Qg3 {[%emt 0:00:00]} Nf6 {[%emt 0:11:30]} 15. Nxf6+ {[%emt 0:00:00]} gxf6 {[%emt 0:00:30]} 16. Be3 {[%emt 0:12:30]} c5 {[%emt 0:03:30]} 17. Rxd8+ {[%emt 0:03:30]} Qxd8 {[%emt 0:00:00]} 18. Rd1 {[%emt 0:01:30]} Qc8 {[%emt 0:00:00]} 19. Qf4 {[%emt 0:02:30]} Be7 {[%emt 0:10:30]} 20. Qa4+ Qc6 {[%emt 0:00:30]} 21. Qxa7 {[%emt 0:00:00]} O-O {[%emt 0:00:30]} 22. Bh6 {[%emt 0:06:30]} Rd8 {[%emt 0:00:00]} 23. Rxd8+ {[%emt 0:00:30]} Bxd8 24. Qb8 {[%emt 0:02:30]} Qc7 {[%emt 0:03:30]} 25. Qxc7 {[%emt 0:00:30]} Bxc7 {[%emt 0:00:00]} 26. g4 {[%emt 0:00:30]} f5 {[%emt 0:00:00]} 27. gxf5 {[%emt 0:00:30]} exf5 {[%emt 0:00:30]} 28. c4 {[%emt 0:10:30]} f6 {[%emt 0:05:30]} 29. Kd2 {[%emt 0:04:08]} Kf7 {[%emt 0:02:30]} 30. Be3 {[%emt 0:04:27]} b6 31. f3 {[%emt 0:01:37]} Ke6 {[%emt 0:05:00]} 32. Kd3 {[%emt 0:02:53]} Kd7 {[%emt 0:10:35]} 33. a3 {[%emt 0:01:44]} Kc6 {[%emt 0:09:18]} 34. Bd2 {[%emt 0:08:04]} Kd7 {[%emt 0:00:00]} 35. b3 {[%emt 0:01:24]} Ke6 {[%emt 0:00:00]} 36. Be3 {[%emt 0:00:30]} f4 {[%emt 0:02:41]} 37. Bf2 {[%emt 0:00:47]} f5 {[%emt 0:00:00]} 38. b4 {[%emt 0:00:28]} Kd6 {[%emt 0:00:58]} 39. Kc3 {[%emt 0:00:41]} Kc6 {[%emt 0:00:00]} 40. Kb3 {[%emt 0:00:24]} Bd8 {[%emt 0:01:19]} 41. Ka4 {[%emt 0:12:48]} Be7 {[%emt 0:00:00]} 42. Be1 {[%emt 0:00:00]} Bd6 {[%emt 0:15:36]} 43. Bc3 {[%emt 0:00:00]} Bc7 {[%emt 0:05:27]} 44. Bf6 {[%emt 0:00:00]} Bd6 {[%emt 0:00:00]} 45. Bg5 {[%emt 0:00:00]} Be5 {[%emt 0:01:24]} 46. Be7 Bc3 {[%emt 0:01:17]} 47. Bf8 {[%emt 0:00:00]} Bd4 {[%emt 0:00:00]} 48. Bh6 {[%emt 0:00:00]} Be5 {[%emt 0:00:13]} 49. h4 Bf6 {[%emt 0:00:30]} 50. h5 {[%emt 0:00:00]} Be5 {[%emt 0:00:30]} 51. Bg5 {[%emt 0:02:35]} Bc7 {[%emt 0:00:06]} 52. Bf6 {[%emt 0:01:39]} Bd6 {[%emt 0:00:00]} 53. Bd8 {[%emt 0:00:47]} Be5 {[%emt 0:01:24]} 54. Kb3 {[%emt 0:13:05]} Bd6 {[%emt 0:00:00]} 55. Kc3 {[%emt 0:00:24]} Bf8 {[%emt 0:04:23]} 56. b5+ {[%emt 0:00:16]} Kb7 {[%emt 0:03:07]} 57. Kd3 {[%emt 0:05:59]} Bg7 {[%emt 0:03:22]} 58. Ke2 {[%emt 0:00:00]} Bc3 {[%emt 0:00:00]} 59. Kf2 {[%emt 0:00:00]} Ba5 {[%emt 0:02:03]} 60. Bg5 {[%emt 0:02:09]} Bd2 {[%emt 0:00:06]} 61. Kg2 {[%emt 0:00:00]} Kc7 {[%emt 0:00:00]} 62. Kh3 {[%emt 0:00:00]} Kd6 {[%emt 0:01:13]} 63. Bd8 {[%emt 0:01:35]} Ba5 {[%emt 0:00:41]} 64. Kh4 {[%emt 0:00:00]} Ke5 {[%emt 0:00:00]} 65. Kg5 {[%emt 0:00:00]} Kd4 {[%emt 0:00:35]} 66. Kh6 {[%emt 0:01:28]} Ke3 {[%emt 0:00:34]} 67. Kxh7 {[%emt 0:00:00]} Kxf3 {[%emt 0:00:00]} 68. Kg6 {[%emt 0:00:19]} Ke4 {[%emt 0:01:36]} 69. h6 {[%emt 0:01:23]} f3 {[%emt 0:00:06]} 70. Bh4 {[%emt 0:00:25]} Bc3 {[%emt 0:00:00]} 71. h7 {[%emt 0:00:25]} Kd3 {[%emt 0:01:23]} 72. Kxf5 {[%emt 0:00:53]} Kxc4 {[%emt 0:00:20]} 73. Ke4 {[%emt 0:00:00]} Kxb5 {[%emt 0:00:00]} 74. Kxf3 {[%emt 0:00:00]} Bh8 {[%emt 0:01:04]} 75. Ke4 {[%emt 0:01:24]} c4 {[%emt 0:00:20]} 76. Bf2 {[%emt 0:00:41]} c3 {[%emt 0:00:35]} 77. Kd3 {[%emt 0:00:24]} Ka4 {[%emt 0:00:28]} 78. Kc2 {[%emt 0:00:18]} Kxa3 {[%emt 0:00:20]} 79. Bxb6 {[%emt 0:00:23]} Kb4 {[%emt 0:00:30]} 1/2-1/2

[Event "41st Arco Open 2019"]
[Site "Arco"]
[Date "2019.10.10"]
[Round "7"]
[White "Modena, Giorgio"]
[Black "Vezzosi, Paolo"]
[Result "0-1"]
[ECO "B32"]
[WhiteElo "1820"]
[BlackElo "2235"]
[Annotator "NA"]
[PlyCount "108"]
[EventDate "2019.10.04"]
[EventType "swiss"]
[EventCountry "ITA"]
[SourceTitle "playchess.com"]
[Source "ChessBase"]
[SourceQuality "1"]
[TimeControl "40/5400+30:1800+30"]

1. e4 {[%emt 0:00:30]} c5 {[%emt 0:00:30]} 2. Nf3 {[%emt 0:00:00]} Nc6 {[%emt 0:00:00]} 3. d4 {[%emt 0:00:00]} cxd4 {[%emt 0:00:00]} 4. Nxd4 {[%emt 0:00:30]} Qc7 {[%emt 0:00:00]} 5. Nxc6 {[%emt 0:03:30]} bxc6 {[%emt 0:00:00]} 6. Bd3 {[%emt 0:00:00]} Nf6 {[%emt 0:02:30]} 7. c4 {[%emt 0:03:00]} e5 {[%emt 0:00:30]} 8. O-O Bc5 {[%emt 0:01:30]} 9. Nc3 {[%emt 0:02:00]} d6 {[%emt 0:00:30]} 10. h3 {[%emt 0:00:30]} Be6 {[%emt 0:01:30]} 11. Be3 {[%emt 0:10:30]} Bxe3 {[%emt 0:13:30]} 12. fxe3 {[%emt 0:00:30]} Nd7 {[%emt 0:00:00]} 13. Qe2 {[%emt 0:07:30]} O-O {[%emt 0:00:00]} 14. b3 {[%emt 0:02:30]} Nc5 {[%emt 0:02:30]} 15. Bc2 {[%emt 0:00:00]} Rfb8 {[%emt 0:01:30]} 16. Rfd1 {[%emt 0:10:00]} a5 {[%emt 0:00:30]} 17. Rab1 {[%emt 0:00:30]} Rb7 {[%emt 0:02:30]} 18. Rd2 {[%emt 0:00:30]} Rd8 {[%emt 0:19:30]} 19. Qd1 {[%emt 0:05:30]} h6 {[%emt 0:00:00]} 20. Ne2 {[%emt 0:03:30]} Qe7 {[%emt 0:00:00]} 21. Ng3 {[%emt 0:04:30]} g6 {[%emt 0:00:00]} 22. Kh2 {[%emt 0:00:00]} Kg7 {[%emt 0:00:00]} 23. Qf3 {[%emt 0:09:00]} Qf6 {[%emt 0:00:30]} 24. Rbd1 {[%emt 0:00:30]} Rbd7 {[%emt 0:01:30]} 25. Nh1 {[%emt 0:03:30]} h5 {[%emt 0:19:30]} 26. Nf2 {[%emt 0:00:30]} Qh4 {[%emt 0:00:00]} 27. Qg3 {[%emt 0:03:30]} Qxg3+ {[%emt 0:00:00]} 28. Kxg3 {[%emt 0:00:00]} Kf6 {[%emt 0:00:00]} 29. Kf3 Ke7 {[%emt 0:00:00]} 30. Ke2 {[%emt 0:04:30]} a4 {[%emt 0:00:00]} 31. b4 {[%emt 0:02:30]} Bxc4+ {[%emt 0:00:00]} 32. Ke1 {[%emt 0:00:30]} Na6 33. Bxa4 {[%emt 0:00:30]} Nxb4 {[%emt 0:00:00]} 34. Rb2 {[%emt 0:00:00]} Rb8 {[%emt 0:00:00]} 35. Rdb1 {[%emt 0:04:00]} Rdb7 {[%emt 0:00:00]} 36. Kd2 {[%emt 0:00:30]} Bxa2 {[%emt 0:00:00]} 37. Bxc6 {[%emt 0:07:49]} Rb6 38. Ra1 {[%emt 0:01:05]} Be6 {[%emt 0:00:00]} 39. Ra7+ {[%emt 0:00:00]} Kf6 {[%emt 0:00:00]} 40. Ba4 {[%emt 0:03:39]} h4 {[%emt 0:04:30]} 41. Bd1 {[%emt 0:32:02]} Nc6 {[%emt 0:00:00]} 42. Rxb6 {[%emt 0:01:14]} Rxb6 {[%emt 0:31:00]} 43. Rc7 {[%emt 0:01:10]} Rb2+ {[%emt 0:00:30]} 44. Bc2 Nb4 {[%emt 0:03:30]} 45. Kc1 {[%emt 0:05:09]} Ra2 {[%emt 0:29:41]} 46. Kb1 {[%emt 0:01:03]} Kg5 {[%emt 0:00:00]} 47. Nd1 {[%emt 0:00:00]} f5 {[%emt 0:00:00]} 48. Nb2 {[%emt 0:02:13]} Ra3 {[%emt 0:00:00]} 49. Nd1 {[%emt 0:02:03]} Nxc2 {[%emt 0:00:00]} 50. Rxc2 {[%emt 0:00:00]} Rd3 51. Kc1 {[%emt 0:00:00]} Rxd1+ {[%emt 0:00:00]} 52. Kxd1 {[%emt 0:00:00]} Bb3 {[%emt 0:00:00]} 53. Kd2 {[%emt 0:00:00]} Bxc2 {[%emt 0:00:00]} 54. Kxc2 {[%emt 0:00:00]} fxe4 {[%emt 0:00:00]} 0-1

[Event "41st Arco Open 2019"]
[Site "Arco"]
[Date "2019.10.11"]
[Round "8"]
[White "Okhotnik, Vladimir"]
[Black "Schulz, Michael"]
[Result "1-0"]
[ECO "B15"]
[WhiteElo "2352"]
[BlackElo "2174"]
[Annotator "NA"]
[PlyCount "49"]
[EventDate "2019.10.04"]
[EventType "swiss"]
[EventCountry "ITA"]
[SourceTitle "playchess.com"]
[Source "ChessBase"]
[SourceQuality "1"]
[TimeControl "40/5400+30:1800+30"]

1. e4 {[%emt 0:00:30]} g6 {[%emt 0:01:30]} 2. d4 {[%emt 0:00:30]} Bg7 {[%emt 0:00:00]} 3. Nf3 {[%emt 0:00:30]} c6 {[%emt 0:01:00]} 4. Nc3 {[%emt 0:00:30]} d5 5. Bf4 {[%emt 0:00:30]} a6 {[%emt 0:01:00]} 6. Qd2 {[%emt 0:00:30]} dxe4 {[%emt 0:00:30]} 7. Nxe4 {[%emt 0:00:30]} Nd7 {[%emt 0:00:30]} 8. O-O-O Ngf6 {[%emt 0:01:30]} 9. Ng3 {[%emt 0:07:00]} h5 {[%emt 0:02:30]} 10. h4 {[%emt 0:02:30]} b5 {[%emt 0:03:30]} 11. Bd3 {[%emt 0:03:30]} Nd5 {[%emt 0:04:30]} 12. Bg5 {[%emt 0:00:30]} N7b6 {[%emt 0:05:30]} 13. Ne5 {[%emt 0:01:30]} Bxe5 {[%emt 0:00:30]} 14. dxe5 {[%emt 0:00:30]} Be6 {[%emt 0:13:30]} 15. Ne4 Qc8 {[%emt 0:10:30]} 16. Nc5 {[%emt 0:04:00]} Nc4 {[%emt 0:03:30]} 17. Qe2 {[%emt 0:06:30]} Nb4 {[%emt 0:03:30]} 18. Bxc4 {[%emt 0:06:30]} Bxc4 19. Qd2 {[%emt 0:05:30]} Nxa2+ {[%emt 0:04:00]} 20. Kb1 {[%emt 0:24:30]} b4 {[%emt 0:08:30]} 21. Bxe7 {[%emt 0:00:00]} Bd5 {[%emt 0:06:30]} 22. Bf6 {[%emt 0:00:00]} Rb8 {[%emt 0:02:30]} 23. Nb3 {[%emt 0:00:00]} Bxb3 24. Qd6 {[%emt 0:00:00]} Bxc2+ {[%emt 0:03:00]} 25. Ka1 {[%emt 0:00:00]} 1-0

[Event "41st Arco Open 2019"]
[Site "Arco"]
[Date "2019.10.11"]
[Round "8"]
[White "Bifulco, Michel"]
[Black "Perman, Sergey"]
[Result "1/2-1/2"]
[ECO "B07"]
[WhiteElo "2261"]
[BlackElo "2129"]
[Annotator "NA"]
[PlyCount "32"]
[EventDate "2019.10.04"]
[EventType "swiss"]
[EventCountry "ITA"]
[SourceTitle "playchess.com"]
[Source "ChessBase"]
[SourceQuality "1"]
[TimeControl "40/5400+30:1800+30"]

1. d4 {[%emt 0:00:30]} Nf6 {[%emt 0:00:30]} 2. g3 {[%emt 0:00:00]} g6 {[%emt 0:00:00]} 3. Bg2 {[%emt 0:00:00]} Bg7 {[%emt 0:00:00]} 4. e4 {[%emt 0:00:00]} d6 5. Nc3 {[%emt 0:00:00]} O-O {[%emt 0:00:00]} 6. Nge2 c6 {[%emt 0:00:30]} 7. a4 {[%emt 0:00:00]} Na6 {[%emt 0:05:30]} 8. h3 {[%emt 0:16:30]} Nb4 {[%emt 0:10:30]} 9. Be3 {[%emt 0:00:00]} a5 {[%emt 0:15:30]} 10. Qd2 {[%emt 0:00:00]} Qc7 {[%emt 0:02:30]} 11. g4 {[%emt 0:00:00]} Rd8 {[%emt 0:21:30]} 12. Ng3 {[%emt 0:00:00]} e5 {[%emt 0:07:30]} 13. f4 {[%emt 0:00:00]} Nxg4 {[%emt 0:00:00]} 14. hxg4 {[%emt 0:04:00]} exd4 {[%emt 0:07:00]} 15. Bf2 {[%emt 0:00:30]} dxc3 {[%emt 0:00:30]} 16. bxc3 {[%emt 0:00:30]} Bxg4 {[%emt 0:02:30]} 1/2-1/2

[Event "41st Arco Open 2019"]
[Site "Arco"]
[Date "2019.10.11"]
[Round "8"]
[White "Curien, Nicolas"]
[Black "Lezzerini, Marco"]
[Result "1-0"]
[ECO "C11"]
[WhiteElo "2261"]
[BlackElo "2116"]
[Annotator "NA"]
[PlyCount "119"]
[EventDate "2019.10.04"]
[EventType "swiss"]
[EventCountry "ITA"]
[SourceTitle "playchess.com"]
[Source "ChessBase"]
[SourceQuality "1"]
[TimeControl "40/5400+30:1800+30"]

1. d4 {[%emt 0:00:30]} e6 {[%emt 0:00:30]} 2. e4 {[%emt 0:00:30]} d5 {[%emt 0:00:00]} 3. Nc3 {[%emt 0:00:00]} Nf6 {[%emt 0:00:00]} 4. e5 {[%emt 0:01:00]} Nfd7 {[%emt 0:00:00]} 5. f4 {[%emt 0:00:00]} c5 {[%emt 0:01:00]} 6. Nf3 Nc6 {[%emt 0:54:30]} 7. Be3 {[%emt 0:00:30]} cxd4 {[%emt 0:00:00]} 8. Nxd4 Bc5 {[%emt 0:00:00]} 9. Qd2 {[%emt 0:02:00]} O-O {[%emt 0:00:00]} 10. O-O-O {[%emt 0:06:30]} a6 {[%emt 0:00:00]} 11. Qf2 {[%emt 0:11:30]} Bxd4 12. Bxd4 {[%emt 0:00:00]} b5 {[%emt 0:00:00]} 13. Bd3 {[%emt 0:00:00]} b4 {[%emt 0:00:00]} 14. Ne2 {[%emt 0:05:30]} a5 {[%emt 0:00:00]} 15. Kb1 {[%emt 0:05:30]} a4 {[%emt 0:00:00]} 16. f5 {[%emt 0:11:30]} Ndxe5 17. Bc5 {[%emt 0:02:30]} Re8 {[%emt 0:00:00]} 18. fxe6 {[%emt 0:01:30]} Bxe6 19. Nd4 {[%emt 0:02:30]} Nxd4 {[%emt 0:00:00]} 20. Bxd4 {[%emt 0:11:30]} Nc6 {[%emt 0:07:00]} 21. Bb5 {[%emt 0:00:00]} Qc7 {[%emt 0:06:30]} 22. Bxc6 {[%emt 0:00:00]} Qxc6 {[%emt 0:00:00]} 23. Qg3 {[%emt 0:02:30]} f6 {[%emt 0:00:00]} 24. Rhf1 {[%emt 0:03:30]} b3 {[%emt 0:15:00]} 25. cxb3 Bf7 26. Rxf6 {[%emt 0:11:00]} Qd7 {[%emt 0:05:20]} 27. Qxg7+ {[%emt 0:00:30]} Kxg7 {[%emt 0:00:04]} 28. Rd6+ {[%emt 0:10:52]} Kg8 {[%emt 0:00:30]} 29. Rxd7 {[%emt 0:00:06]} axb3 {[%emt 0:00:00]} 30. a3 {[%emt 0:00:30]} Rad8 {[%emt 0:01:15]} 31. Rxd8 {[%emt 0:02:13]} Rxd8 {[%emt 0:00:04]} 32. Kc1 {[%emt 0:01:02]} Bg6 {[%emt 0:02:01]} 33. Kd2 Rc8 {[%emt 0:02:14]} 34. Ke3 {[%emt 0:05:34]} Rc4 {[%emt 0:05:42]} 35. Bc3 {[%emt 0:01:23]} Rxc3+ {[%emt 0:02:09]} 36. bxc3 b2 {[%emt 0:00:04]} 37. Kd4 {[%emt 0:00:34]} Kf7 {[%emt 0:00:00]} 38. Kxd5 {[%emt 0:00:28]} Ke7 {[%emt 0:02:05]} 39. a4 {[%emt 0:03:35]} Kd7 {[%emt 0:00:49]} 40. g4 {[%emt 0:00:00]} Bc2 {[%emt 0:00:00]} 41. Re1 {[%emt 0:02:43]} Kc7 {[%emt 0:06:43]} 42. c4 {[%emt 0:08:30]} b1=Q {[%emt 0:00:30]} 43. Rxb1 {[%emt 0:00:00]} Bxb1 {[%emt 0:00:30]} 44. h4 Bc2 {[%emt 0:00:00]} 45. a5 {[%emt 0:02:30]} Bb1 {[%emt 0:05:00]} 46. g5 {[%emt 0:00:30]} Bg6 {[%emt 0:11:14]} 47. c5 {[%emt 0:00:30]} Bf7+ 48. Ke5 {[%emt 0:00:30]} Bc4 {[%emt 0:00:12]} 49. Kf6 Kc6 {[%emt 0:00:33]} 50. h5 {[%emt 0:03:48]} Bd3 {[%emt 0:02:16]} 51. a6 {[%emt 0:08:27]} Bxa6 {[%emt 0:07:13]} 52. g6 {[%emt 0:06:54]} hxg6 {[%emt 0:00:11]} 53. h6 {[%emt 0:00:00]} g5 {[%emt 0:00:00]} 54. h7 {[%emt 0:00:00]} g4 {[%emt 0:00:30]} 55. h8=Q {[%emt 0:00:33]} Kxc5 {[%emt 0:00:03]} 56. Qh5+ {[%emt 0:00:00]} Kb4 {[%emt 0:00:00]} 57. Qxg4+ {[%emt 0:00:00]} Bc4 {[%emt 0:00:00]} 58. Ke5 {[%emt 0:01:06]} Kc3 {[%emt 0:01:06]} 59. Qd4+ {[%emt 0:00:00]} Kb3 {[%emt 0:00:00]} 60. Qd2 {[%emt 0:00:00]} 1-0

[Event "41st Arco Open 2019"]
[Site "Arco"]
[Date "2019.10.11"]
[Round "8"]
[White "Dittmar, Peter"]
[Black "Pasti, Aron"]
[Result "1/2-1/2"]
[ECO "A20"]
[WhiteElo "2253"]
[BlackElo "2099"]
[Annotator "NA"]
[PlyCount "84"]
[EventDate "2019.10.04"]
[EventType "swiss"]
[EventCountry "ITA"]
[SourceTitle "playchess.com"]
[Source "ChessBase"]
[SourceQuality "1"]
[TimeControl "40/5400+30:1800+30"]

1. c4 {[%emt 0:00:30]} e5 {[%emt 0:00:30]} 2. g3 {[%emt 0:00:00]} Nf6 {[%emt 0:00:00]} 3. Bg2 {[%emt 0:00:00]} d5 {[%emt 0:00:00]} 4. cxd5 {[%emt 0:00:00]} Nxd5 {[%emt 0:00:00]} 5. Nf3 {[%emt 0:00:00]} Nc6 {[%emt 0:00:00]} 6. O-O {[%emt 0:07:30]} Nb6 {[%emt 0:07:30]} 7. b3 {[%emt 0:00:00]} g6 {[%emt 0:01:30]} 8. Nc3 Bg7 {[%emt 0:03:30]} 9. Ba3 {[%emt 0:15:30]} Ne7 {[%emt 0:05:30]} 10. Rc1 {[%emt 0:00:30]} O-O {[%emt 0:13:30]} 11. Qc2 {[%emt 0:03:30]} Re8 12. Ne1 {[%emt 0:13:30]} c6 {[%emt 0:12:00]} 13. Ne4 Ned5 {[%emt 0:00:30]} 14. Nd3 {[%emt 0:19:00]} f5 {[%emt 0:02:30]} 15. Nec5 e4 {[%emt 0:01:30]} 16. Nb2 {[%emt 0:01:00]} Nd7 {[%emt 0:05:30]} 17. Nxd7 {[%emt 0:04:30]} Bxd7 {[%emt 0:00:30]} 18. Nc4 {[%emt 0:03:30]} Qf6 19. d3 {[%emt 0:07:30]} Qe6 {[%emt 0:09:00]} 20. dxe4 {[%emt 0:00:00]} fxe4 {[%emt 0:00:00]} 21. e3 {[%emt 0:01:00]} b5 {[%emt 0:06:00]} 22. Na5 {[%emt 0:03:45]} b4 {[%emt 0:09:30]} 23. Bb2 {[%emt 0:00:15]} Bxb2 {[%emt 0:02:30]} 24. Qxb2 {[%emt 0:00:30]} Nc3 {[%emt 0:01:41]} 25. Rfe1 c5 {[%emt 0:00:30]} 26. Bf1 {[%emt 0:01:00]} Qf6 27. Rc2 {[%emt 0:01:36]} Be6 {[%emt 0:04:19]} 28. a3 {[%emt 0:01:47]} Bd5 29. Ra1 {[%emt 0:00:17]} Qb6 {[%emt 0:08:43]} 30. Nc4 Qc7 {[%emt 0:00:46]} 31. axb4 {[%emt 0:01:54]} cxb4 32. Ra5 {[%emt 0:02:18]} Bxc4 {[%emt 0:01:51]} 33. Bxc4+ {[%emt 0:00:13]} Kh8 {[%emt 0:00:10]} 34. Rd5 {[%emt 0:07:26]} Rad8 35. Rcd2 {[%emt 0:01:56]} Rxd5 {[%emt 0:04:08]} 36. Bxd5 {[%emt 0:02:17]} Qg7 {[%emt 0:02:06]} 37. Bc4 {[%emt 0:00:25]} Qf6 38. Rd4 {[%emt 0:00:49]} Rf8 {[%emt 0:02:15]} 39. Qd2 Nb1 {[%emt 0:00:30]} 40. Qe1 {[%emt 0:04:03]} Nc3 {[%emt 0:00:00]} 41. Qd2 {[%emt 0:30:09]} Nb1 {[%emt 0:31:00]} 42. Qe1 {[%emt 0:00:30]} Nc3 {[%emt 0:00:00]} 1/2-1/2

[Event "41st Arco Open 2019"]
[Site "Arco"]
[Date "2019.10.11"]
[Round "8"]
[White "Fecker, Noah"]
[Black "Molnar, Bela"]
[Result "1/2-1/2"]
[ECO "C06"]
[WhiteElo "2240"]
[BlackElo "2305"]
[Annotator "NA"]
[PlyCount "65"]
[EventDate "2019.10.04"]
[EventType "swiss"]
[EventCountry "ITA"]
[SourceTitle "playchess.com"]
[Source "ChessBase"]
[SourceQuality "1"]
[TimeControl "40/5400+30:1800+30"]

1. e4 {[%emt 0:00:30]} e6 {[%emt 0:01:30]} 2. d4 {[%emt 0:00:00]} d5 {[%emt 0:00:00]} 3. Nd2 {[%emt 0:00:00]} Be7 {[%emt 0:00:00]} 4. Ngf3 {[%emt 0:01:30]} Nf6 {[%emt 0:01:30]} 5. e5 {[%emt 0:00:30]} Nfd7 {[%emt 0:00:00]} 6. Bd3 {[%emt 0:00:30]} c5 {[%emt 0:00:00]} 7. c3 {[%emt 0:00:30]} Nc6 {[%emt 0:00:00]} 8. O-O a5 {[%emt 0:00:00]} 9. Re1 {[%emt 0:01:00]} cxd4 {[%emt 0:01:30]} 10. cxd4 {[%emt 0:00:30]} g5 {[%emt 0:00:30]} 11. h3 {[%emt 0:08:30]} h5 {[%emt 0:11:30]} 12. Nf1 {[%emt 0:03:30]} Nf8 {[%emt 0:00:30]} 13. Be3 {[%emt 0:07:30]} Bd7 {[%emt 0:01:30]} 14. a3 {[%emt 0:07:30]} a4 {[%emt 0:02:30]} 15. Rc1 {[%emt 0:00:00]} Na5 {[%emt 0:01:30]} 16. Qe2 {[%emt 0:09:00]} Ng6 {[%emt 0:04:30]} 17. Rc3 {[%emt 0:08:30]} Nb3 {[%emt 0:08:30]} 18. N3d2 {[%emt 0:12:30]} Nxd2 {[%emt 0:26:30]} 19. Qxd2 {[%emt 0:00:30]} g4 {[%emt 0:00:00]} 20. hxg4 {[%emt 0:03:30]} hxg4 {[%emt 0:00:00]} 21. Bxg6 {[%emt 0:02:30]} fxg6 {[%emt 0:00:00]} 22. Qe2 Rh4 {[%emt 0:00:00]} 23. g3 {[%emt 0:03:00]} Rh5 {[%emt 0:00:00]} 24. Qxg4 {[%emt 0:00:30]} Kf7 {[%emt 0:00:00]} 25. Qf3+ {[%emt 0:04:30]} Kg7 26. g4 {[%emt 0:02:30]} Rh4 {[%emt 0:00:00]} 27. Rec1 {[%emt 0:00:00]} Bc6 {[%emt 0:00:00]} 28. Qg2 {[%emt 0:03:00]} Qd7 {[%emt 0:00:00]} 29. Bf4 {[%emt 0:03:18]} Rah8 {[%emt 0:00:00]} 30. f3 {[%emt 0:01:15]} Bd8 {[%emt 0:25:49]} 31. Bg3 {[%emt 0:01:46]} R4h7 {[%emt 0:00:00]} 32. f4 {[%emt 0:00:00]} Bb6 {[%emt 0:00:00]} 33. Bf2 {[%emt 0:03:16]} 1/2-1/2

[Event "41st Arco Open 2019"]
[Site "Arco"]
[Date "2019.10.11"]
[Round "8"]
[White "Glienke, Manfred Dr."]
[Black "Sedina, Elena"]
[Result "0-1"]
[ECO "A09"]
[WhiteElo "2235"]
[BlackElo "2294"]
[Annotator "NA"]
[PlyCount "70"]
[EventDate "2019.10.04"]
[EventType "swiss"]
[EventCountry "ITA"]
[SourceTitle "playchess.com"]
[Source "ChessBase"]
[SourceQuality "1"]
[TimeControl "40/5400+30:1800+30"]

1. Nf3 {[%emt 0:00:30]} d5 {[%emt 0:01:30]} 2. c4 {[%emt 0:00:00]} d4 {[%emt 0:00:00]} 3. g3 {[%emt 0:01:00]} Nc6 {[%emt 0:03:00]} 4. Bg2 {[%emt 0:00:30]} e5 5. d3 {[%emt 0:00:00]} Nf6 {[%emt 0:03:00]} 6. O-O {[%emt 0:00:00]} a5 {[%emt 0:00:30]} 7. e4 {[%emt 0:01:30]} Nd7 {[%emt 0:20:30]} 8. Na3 {[%emt 0:31:30]} Be7 {[%emt 0:06:30]} 9. Ne1 {[%emt 0:00:00]} O-O {[%emt 0:14:30]} 10. Nac2 {[%emt 0:00:00]} Nc5 {[%emt 0:03:30]} 11. f4 {[%emt 0:00:00]} exf4 12. gxf4 {[%emt 0:00:00]} f5 {[%emt 0:20:00]} 13. e5 {[%emt 0:00:00]} Kh8 14. b3 {[%emt 0:06:00]} Ne6 {[%emt 0:07:40]} 15. Nf3 {[%emt 0:44:58]} Nb4 {[%emt 0:05:18]} 16. Nce1 {[%emt 0:00:00]} c5 {[%emt 0:01:46]} 17. a3 {[%emt 0:00:00]} Nc6 {[%emt 0:00:00]} 18. Ra2 {[%emt 0:00:00]} Bd7 19. Qe2 {[%emt 0:00:00]} Be8 {[%emt 0:01:34]} 20. Qf2 Rb8 {[%emt 0:00:52]} 21. a4 {[%emt 0:00:00]} h6 {[%emt 0:00:00]} 22. Kh1 {[%emt 0:00:00]} g5 {[%emt 0:04:05]} 23. Rg1 g4 {[%emt 0:00:30]} 24. Nd2 {[%emt 0:00:00]} Bh4 {[%emt 0:01:06]} 25. Qe2 {[%emt 0:00:00]} Nb4 {[%emt 0:00:00]} 26. Rb2 {[%emt 0:00:00]} Bxe1 {[%emt 0:00:00]} 27. Qxe1 {[%emt 0:00:00]} Nxd3 {[%emt 0:04:56]} 28. Qg3 {[%emt 0:16:13]} Nxb2 {[%emt 0:01:24]} 29. Bxb2 {[%emt 0:00:00]} Bc6 {[%emt 0:00:35]} 30. Bd5 {[%emt 0:00:00]} Bxd5+ {[%emt 0:00:10]} 31. cxd5 {[%emt 0:00:00]} Qxd5+ {[%emt 0:00:30]} 32. Rg2 {[%emt 0:00:00]} Kh7 {[%emt 0:00:27]} 33. Nc4 {[%emt 0:00:00]} b5 {[%emt 0:00:29]} 34. axb5 {[%emt 0:00:00]} Rxb5 {[%emt 0:00:00]} 35. Bc1 {[%emt 0:00:00]} a4 {[%emt 0:00:44]} 0-1